bitfinex/quotes_SOLUSD_20220109
["timestamp","ask_amount","ask_price","bid_price","bid_amount"]
[1641688206417,8.5,141.13,140.95,8.5]
[1641688206716,8.5,141.13,140.96,3.0]
[1641688206919,30.70938876,141.12,140.97,0.26]
[1641688207116,30.70938876,141.12,140.97,48.1802]
[1641688207517,10.8942,141.11,140.99,35.4479]
[1641688207717,10.8942,141.11,140.98,0.25]
[1641688207917,10.8942,141.11,140.97,48.1802]
[1641688208118,0.25,141.1,140.97,48.1802]
[1641688208316,3.25,141.1,140.97,48.1802]
[1641688208517,0.26,141.09,140.97,48.1802]
[1641688208718,7.305,141.09,140.97,47.9202]
[1641688208917,0.25,141.08,140.97,47.9202]
[1641688209217,3.25,141.08,140.97,47.9202]
[1641688209416,1.91345313,141.07,140.97,47.9202]
[1641688209617,10.6406,141.03,140.97,47.9202]
[1641688209817,10.6406,141.03,140.95,10.6397]
[1641688210017,31.57391077,141.02,140.94,8.5]
[1641688210618,10.9019,141.01,140.94,8.5]
[1641688210817,10.9019,141.01,140.91,48.6081]
[1641688211018,10.9019,141.01,140.9,113.88404218]
[1641688211019,0.25,141.0,140.9,3.96734218]
[1641688211225,8.185,141.0,140.88,12.46734218]
[1641688211422,0.26,140.99,140.88,12.46734218]
[1641688211920,0.26,140.99,140.88,30.80420914]
[1641688211921,10.6472,140.96,140.88,30.80420914]
[1641688212320,10.6472,140.96,140.89,0.26]
[1641688212521,10.6472,140.96,140.89,0.51]
[1641688212923,10.6472,140.96,140.89,0.25]
[1641688213321,10.6446,140.97,140.89,0.25]
[1641688213520,31.32391077,141.02,140.89,0.25]
[1641688213724,3.26,141.01,140.89,0.25]
[1641688214020,3.26,141.01,140.88,22.30420914]
[1641688214421,0.26,141.01,140.89,0.26]
[1641688214820,10.6432,140.99,140.91,10.6432]
[1641688215020,10.6432,140.99,140.92,0.26]
[1641688215220,0.26,141.01,140.92,0.26]
[1641688215621,0.26,141.01,140.9,0.51]
[1641688215821,0.51,141.01,140.9,0.51]
[1641688216019,0.51,141.01,140.88,26.27155132]
[1641688216020,39.82391077,141.02,140.89,3.51]
[1641688216223,8.5,141.08,140.92,10.6425]
[1641688216423,102.8722,141.11,140.92,10.6425]
[1641688216424,86.4329,141.1,140.93,9.01]
[1641688216622,86.4329,141.1,140.94,46.4377]
[1641688216823,8.5,141.1,140.94,46.4377]
[1641688217025,8.5,141.1,140.95,0.51]
[1641688217222,10.6371,141.08,140.99,10.6371]
[1641688217423,0.26,141.07,140.99,10.6371]
[1641688218422,0.51,141.07,140.99,10.6371]
[1641688219223,0.25,141.07,140.99,10.6371]
[1641688220225,0.25,141.08,140.99,10.6371]
[1641688220424,8.5,141.11,141.0,22.81420914]
[1641688220624,12.19844795,141.15,141.0,22.81420914]
[1641688220824,12.19844795,141.15,141.04,35.4345]
[1641688221025,12.19844795,141.15,141.01,3.0]
[1641688221026,3.69844795,141.15,141.05,3.26]
[1641688221223,3.69844795,141.17,141.05,0.26]
[1641688221424,27.93194956,141.15,141.06,3.25]
[1641688221725,27.93194956,141.15,141.11,10.6277]
[1641688222323,0.25,141.14,141.07,35.4269]
[1641688222530,0.51,141.14,141.02,8.5]
[1641688222724,0.51,141.14,141.01,3.96734218]
[1641688222923,3.51,141.14,141.01,3.96734218]
[1641688223224,0.51,141.14,141.01,3.96734218]
[1641688223425,11.1419,141.14,141.01,25.12370625]
[1641688223825,11.1419,141.14,141.02,3.0]
[1641688224025,11.1419,141.14,141.02,3.25]
[1641688224228,11.1419,141.14,141.03,0.26]
[1641688224427,11.1419,141.14,141.05,10.6327]
[1641688226327,10.8819,141.14,141.05,10.6327]
[1641688228029,0.26,141.13,141.05,10.6327]
[1641688228231,10.6322,141.13,141.05,10.6327]
[1641688228429,12.19844795,141.19,141.06,0.51]
[1641688228828,3.0,141.18,141.06,0.51]
[1641688229031,3.0,141.18,141.06,0.25]
[1641688229332,25.45217258,141.17,141.06,0.25]
[1641688229530,25.45217258,141.17,141.13,10.6259]
[1641688229729,25.45217258,141.17,141.05,103.5307]
[1641688229929,25.45217258,141.17,141.06,0.26]
[1641688230129,8.5,141.22,141.07,4.14638529]
[1641688230333,201.9825,141.23,141.07,4.14638529]
[1641688230334,10.6255,141.21,141.07,27.67668529]
[1641688230530,39.11894795,141.24,141.14,10.625]
[1641688230730,94.7,141.25,141.14,10.625]
[1641688231134,94.7,141.25,141.08,11.76]
[1641688231332,10.6264,141.2,141.05,109.5755]
[1641688231632,3.0,141.19,141.08,10.6298]
[1641688231932,3.25,141.19,141.08,10.6298]
[1641688232131,24.89203897,141.18,141.08,10.6298]
[1641688232532,0.25,141.19,141.09,0.26]
[1641688232731,47.61734795,141.24,141.14,10.6257]
[1641688232941,0.25,141.21,141.14,10.6257]
[1641688233836,10.8751,141.21,141.14,10.6257]
[1641688234033,10.6251,141.21,141.14,10.6257]
[1641688234236,0.25,141.2,141.09,23.6563]
[1641688234436,0.25,141.2,141.1,0.26]
[1641688235035,10.6263,141.2,141.1,0.26]
[1641688235235,31.66774226,141.23,141.1,0.51]
[1641688235736,31.66774226,141.23,141.15,10.6245]
[1641688236739,10.6243,141.22,141.15,10.6245]
[1641688236942,31.66774226,141.23,141.15,10.6245]
[1641688237242,31.66774226,141.23,141.16,10.884]
[1641688237439,31.66774226,141.23,141.16,10.624]
[1641688237839,10.8747,141.22,141.16,10.624]
[1641688239045,10.6247,141.22,141.16,10.624]
[1641688240351,14.1353,141.21,141.14,10.6253]
[1641688240549,15.78875313,141.21,141.14,10.6253]
[1641688240849,1.65345313,141.2,141.08,23.3932]
[1641688241048,3.0,141.19,141.08,23.3932]
[1641688241250,3.51,141.19,141.08,23.3932]
[1641688241449,0.51,141.18,141.08,23.3932]
[1641688241653,0.51,141.21,141.09,0.26]
[1641688241853,10.6253,141.2,141.09,3.51]
[1641688242253,0.51,141.21,141.09,3.51]
[1641688242454,0.25,141.21,141.09,3.51]
[1641688242653,0.51,141.22,141.09,3.51]
[1641688242866,10.6265,141.19,141.12,10.626]
[1641688243077,10.6265,141.19,141.09,0.51]
[1641688243974,10.6265,141.19,141.11,10.6267]
[1641688244375,10.6265,141.19,141.12,0.26]
[1641688245081,10.6265,141.19,141.12,10.8861]
[1641688245279,35.4253,141.21,141.12,10.8861]
[1641688245280,10.6252,141.2,141.13,0.26]
[1641688245478,10.6252,141.2,141.13,0.51]
[1641688245678,31.66774226,141.23,141.13,0.26]
[1641688245877,31.66774226,141.23,141.11,3.51]
[1641688246378,122.8815,141.28,141.14,35.4072]
[1641688246580,122.8815,141.28,141.12,32.5497]
[1641688246778,87.4734,141.28,141.12,32.5497]
[1641688246978,87.4734,141.28,141.13,3.51]
[1641688247180,8.5,141.28,141.13,3.51]
[1641688247377,8.5,141.28,141.14,3.71843299]
[1641688247378,24.25163442,141.27,141.14,3.71843299]
[1641688247581,10.6208,141.26,141.16,35.4033]
[1641688247777,3.69844795,141.3,141.15,3.51]
[1641688247978,72.0108,141.32,141.16,8.5]
[1641688248178,98.39844795,141.33,141.16,8.5]
[1641688248379,98.39844795,141.33,141.24,10.6174]
[1641688248678,24.20928085,141.32,141.24,10.6174]
[1641688248877,24.20928085,141.32,141.25,0.51]
[1641688249277,3.69844795,141.36,141.25,0.51]
[1641688249478,3.69844795,141.36,141.28,10.6145]
[1641688249682,3.69844795,141.36,141.25,0.25]
[1641688249878,3.69844795,141.36,141.23,0.25]
[1641688250079,10.613,141.37,141.28,35.373]
[1641688250281,27.36648139,141.36,141.28,35.373]
[1641688250497,27.36648139,141.36,141.29,3.51]
[1641688251298,3.69844795,141.38,141.29,3.51]
[1641688251500,0.25,141.37,141.32,10.6119]
[1641688252509,13.8596,141.41,141.32,10.6119]
[1641688252704,26.84341804,141.41,141.33,0.26]
[1641688252908,30.54186599,141.41,141.36,10.6087]
[1641688253709,1.65345313,141.4,141.36,10.6087]
[1641688253910,0.25,141.39,141.35,10.6093]
[1641688254122,3.25,141.39,141.35,10.6093]
[1641688254529,0.26,141.38,141.35,10.6093]
[1641688255327,3.25,141.39,141.36,6.06437095]
[1641688255528,3.0,141.39,141.37,10.6071]
[1641688255931,3.0,141.4,141.37,10.6071]
[1641688256136,23.59341804,141.41,141.37,10.6071]
[1641688256935,0.26,141.4,141.37,10.6071]
[1641688257336,0.26,141.4,141.38,6.06437095]
[1641688257538,23.59341804,141.41,141.38,6.06437095]
[1641688257866,23.59341804,141.41,141.38,16.67117095]
[1641688258035,23.59341804,141.41,141.38,6.06437095]
[1641688258235,0.25,141.4,141.27,8.5]
[1641688258437,0.25,141.4,141.25,8.5]
[1641688258637,10.8606,141.4,141.28,10.614]
[1641688258836,11.1206,141.4,141.28,10.614]
[1641688259036,3.0,141.39,141.28,10.614]
[1641688259236,65.87564365,141.39,141.28,10.614]
[1641688259437,1.65345313,141.43,141.29,3.25]
[1641688259637,3.69844795,141.44,141.29,50.0206]
[1641688259838,10.6104,141.41,141.33,10.6099]
[1641688260238,10.6104,141.41,141.34,0.26]
[1641688260437,10.6104,141.41,141.33,10.6099]
[1641688260438,27.88718378,141.4,141.29,49.7706]
[1641688260638,30.88718378,141.4,141.25,8.5]
[1641688260840,10.6128,141.37,141.29,10.6128]
[1641688261238,0.51,141.36,141.25,8.5]
[1641688261440,0.51,141.36,141.26,35.3766]
[1641688261642,0.51,141.36,141.26,62.66530704]
[1641688261841,0.25,141.36,141.21,31.716]
[1641688262039,18.66485313,141.36,141.21,31.716]
[1641688262339,18.66485313,141.36,141.21,23.216]
[1641688262541,3.26,141.35,141.21,23.216]
[1641688262939,28.9469883,141.34,141.21,23.216]
[1641688263139,3.0,141.33,141.21,23.216]
[1641688263440,0.25,141.32,141.22,3.0]
[1641688264046,10.8671,141.32,141.22,3.0]
[1641688264341,0.25,141.32,141.23,0.25]
[1641688264540,28.6969883,141.34,141.23,0.25]
[1641688264738,0.25,141.33,141.23,0.25]
[1641688264939,8.5,141.38,141.23,0.25]
[1641688265368,3.69844795,141.41,141.24,8.5]
[1641688265543,3.69844795,141.41,141.25,50.7973]
[1641688265740,3.69844795,141.41,141.32,35.3504]
[1641688266040,30.11982688,141.43,141.33,14.1154]
[1641688266242,30.11982688,141.43,141.33,11.1154]
[1641688266450,30.11982688,141.43,141.34,3.0]
[1641688266842,30.11982688,141.43,141.35,0.26]
[1641688267244,0.25,141.42,141.35,0.26]
[1641688267443,0.25,141.42,141.32,0.51]
[1641688267747,0.25,141.42,141.36,10.6081]
[1641688267944,3.69844795,141.47,141.37,0.51]
[1641688268146,3.69844795,141.48,141.37,0.51]
[1641688268744,3.69844795,141.48,141.37,0.25]
[1641688268945,24.62035877,141.47,141.37,0.25]
[1641688269145,3.69844795,141.48,141.36,21.64318612]
[1641688269344,3.69844795,141.48,141.36,28.36418612]
[1641688269545,86.2398,141.51,141.37,3.51]
[1641688269948,3.0,141.5,141.37,3.51]
[1641688270145,26.83051592,141.49,141.37,3.51]
[1641688270350,26.83051592,141.49,141.43,10.6013]
[1641688270749,0.25,141.48,141.43,10.6013]
[1641688272978,0.25,141.48,141.44,10.8613]
[1641688273378,0.25,141.48,141.44,0.26]
[1641688273877,0.25,141.48,141.38,0.26]
[1641688274878,11.1146,141.48,141.4,10.6046]
[1641688275279,11.1146,141.48,141.37,49.9386]
[1641688275482,10.8546,141.48,141.37,49.9386]
[1641688275879,0.25,141.48,141.37,49.9386]
[1641688276482,3.69844795,141.51,141.37,49.9386]
[1641688276682,3.69844795,141.51,141.37,63.8786]
[1641688276882,3.69844795,141.51,141.44,10.6002]
[1641688277082,3.69844795,141.52,141.45,3.0]
[1641688277488,3.69844795,141.52,141.46,0.51]
[1641688277682,3.69844795,141.52,141.46,0.26]
[1641688277882,3.69844795,141.52,141.47,10.599]
[1641688278085,3.0,141.51,141.47,10.599]
[1641688278283,14.29834795,141.55,141.48,0.26]
[1641688278484,3.69844795,141.55,141.44,3.51]
[1641688278882,3.69844795,141.55,141.44,0.51]
[1641688279284,27.58122371,141.54,141.44,0.51]
[1641688279482,27.58122371,141.54,141.49,10.5978]
[1641688279683,27.58122371,141.54,141.43,79.6261]
[1641688279882,3.51,141.53,141.36,8.5]
[1641688280084,3.51,141.53,141.37,50.4606]
[1641688280283,5.16345313,141.53,141.37,50.4606]
[1641688280484,35.3537,141.5,141.39,10.6051]
[1641688280686,10.6051,141.48,141.39,10.6051]
[1641688280883,3.0,141.49,141.4,3.0]
[1641688281085,6.94844795,141.53,141.4,3.0]
[1641688281284,6.94844795,141.53,141.41,0.26]
[1641688281685,10.6029,141.5,141.42,10.6029]
[1641688281886,0.25,141.49,141.43,0.26]
[1641688282387,10.6029,141.5,141.43,0.26]
[1641688282786,10.6023,141.51,141.43,11.112]
[1641688282986,3.0,141.53,141.44,6.94357156]
[1641688283189,27.58122371,141.54,141.44,6.94357156]
[1641688283387,27.58122371,141.54,141.44,6.69357156]
[1641688283787,98.39844795,141.55,141.45,0.25]
[1641688283988,3.0,141.54,141.45,3.25]
[1641688284189,94.7,141.55,141.45,3.25]
[1641688284389,0.25,141.53,141.46,0.26]
[1641688284589,94.7,141.55,141.46,0.26]
[1641688284788,10.6002,141.54,141.46,0.26]
[1641688285991,0.25,141.53,141.46,3.0]
[1641688286391,10.8509,141.53,141.47,0.25]
[1641688287492,10.8509,141.53,141.46,0.26]
[1641688287493,10.8509,141.53,141.46,0.51]
[1641688287691,10.8509,141.53,141.46,3.51]
[1641688288394,10.6009,141.53,141.46,3.51]
[1641688288592,10.6009,141.53,141.46,3.26]
[1641688288792,10.6009,141.53,141.44,10.6017]
[1641688288994,25.11586663,141.55,141.42,23.5336]
[1641688288995,3.26,141.52,141.42,23.5336]
[1641688289204,3.26,141.52,141.37,241.429]
[1641688289395,3.26,141.52,141.38,0.25]
[1641688289795,0.25,141.51,141.38,0.25]
[1641688289994,35.3569,141.48,141.38,32.70848824]
[1641688290194,2.23422173,141.51,141.38,32.70848824]
[1641688290394,26.95513351,141.49,141.39,0.26]
[1641688290793,0.25,141.48,141.39,0.26]
[1641688291000,0.25,141.48,141.39,10.8648]
[1641688291395,26.95513351,141.49,141.39,10.8648]
[1641688291795,26.95513351,141.49,141.4,0.25]
[1641688291996,26.95513351,141.49,141.43,10.6025]
[1641688292595,0.25,141.48,141.39,22.9385]
[1641688292795,0.25,141.48,141.4,3.0]
[1641688292995,0.25,141.48,141.39,22.9385]
[1641688293396,0.51,141.48,141.39,22.9385]
[1641688293598,10.6052,141.47,141.39,22.9385]
[1641688293995,0.51,141.46,141.37,99.811]
[1641688294194,3.51,141.46,141.37,99.811]
[1641688294795,3.51,141.46,141.35,24.5829]
[1641688294995,8.5,141.45,141.32,75.4243]
[1641688295194,10.15345313,141.45,141.32,75.4243]
[1641688295398,3.51,141.44,141.32,75.4243]
[1641688295595,33.91510719,141.43,141.31,79.557]
[1641688295894,33.91510719,141.43,141.27,58.66584121]
[1641688295895,10.6145,141.36,141.28,78.1149]
[1641688296098,10.6145,141.36,141.27,50.16584121]
[1641688296297,10.6145,141.36,141.27,48.517]
[1641688296298,0.25,141.35,141.27,48.517]
[1641688296496,3.25,141.35,141.27,59.1322]
[1641688296696,0.25,141.35,141.27,59.1322]
[1641688296896,10.8647,141.35,141.27,59.1322]
[1641688297499,1.98422173,141.37,141.27,59.1322]
[1641688297695,0.25,141.36,141.27,59.1322]
[1641688297896,1.98422173,141.37,141.27,59.1322]
[1641688298095,1.98422173,141.39,141.32,10.6096]
[1641688298697,1.98422173,141.39,141.33,0.25]
[1641688298897,8.5,141.41,141.3,3.51]
[1641688299127,19.1101,141.41,141.34,10.61]
[1641688299497,19.1101,141.41,141.35,0.26]
[1641688300300,19.1101,141.41,141.35,10.8698]
[1641688300499,19.1101,141.41,141.35,10.6098]
[1641688300701,19.1101,141.41,141.36,0.26]
[1641688300900,19.1101,141.41,141.32,41.09013678]
[1641688301101,19.1101,141.41,141.33,3.0]
[1641688301306,8.5,141.41,141.33,3.51]
[1641688301702,8.5,141.41,141.33,0.51]
[1641688301902,0.25,141.4,141.33,35.6112]
[1641688302102,0.25,141.4,141.33,0.25]
[1641688302302,0.25,141.4,141.34,0.26]
[1641688302504,0.25,141.4,141.31,3.51]
[1641688302701,0.25,141.4,141.31,0.51]
[1641688302903,30.08982434,141.42,141.35,10.6093]
[1641688303101,10.48422173,141.43,141.35,10.6093]
[1641688303303,1.98422173,141.43,141.36,3.51]
[1641688303905,1.98422173,141.43,141.38,10.6072]
[1641688304305,28.30365151,141.44,141.39,0.26]
[1641688304504,28.30365151,141.44,141.36,0.26]
[1641688304908,10.6093,141.42,141.36,10.609]
[1641688305410,28.30365151,141.44,141.37,0.51]
[1641688305605,1.98422173,141.46,141.37,0.51]
[1641688306005,1.98422173,141.46,141.37,5.449]
[1641688306208,1.98422173,141.46,141.41,10.6054]
[1641688306407,1.98422173,141.46,141.42,0.51]
[1641688306631,1.98422173,141.46,141.42,3.51]
[1641688307132,1.98422173,141.5,141.42,3.51]
[1641688307333,1.98422173,141.5,141.46,10.601]
[1641688307932,1.98422173,141.5,141.47,0.26]
[1641688308134,1.98422173,141.52,141.47,0.26]
[1641688308332,1.98422173,141.52,141.47,10.861]
[1641688308534,1.98422173,141.52,141.48,0.26]
[1641688308734,1.98422173,141.52,141.45,0.26]
[1641688309038,1.98422173,141.52,141.47,3.0]
[1641688309237,1.98422173,141.53,141.45,0.26]
[1641688309435,1.98422173,141.53,141.45,47.7616]
[1641688309637,1.98422173,141.53,141.46,3.0]
[1641688309839,1.98422173,141.53,141.49,10.599]
[1641688310038,1.98422173,141.55,141.5,0.26]
[1641688310242,1.98422173,141.55,141.5,0.51]
[1641688310438,1.98422173,141.55,141.5,0.26]
[1641688310639,1.98422173,141.55,141.47,0.26]
[1641688311040,1.98422173,141.55,141.51,10.5969]
[1641688311240,1.98422173,141.58,141.51,10.5969]
[1641688311441,1.98422173,141.58,141.52,0.26]
[1641688311840,1.98422173,141.58,141.5,0.51]
[1641688312041,3.0,141.57,141.46,3.0]
[1641688312243,3.0,141.57,141.47,0.26]
[1641688312442,0.25,141.56,141.47,0.51]
[1641688313045,1.98422173,141.55,141.47,0.51]
[1641688313444,1.98422173,141.55,141.51,10.598]
[1641688313845,1.98422173,141.57,141.52,0.26]
[1641688314049,1.98422173,141.57,141.51,10.598]
[1641688314746,1.73422173,141.58,141.51,10.598]
[1641688314955,10.8577,141.57,141.51,10.598]
[1641688315347,10.5977,141.57,141.51,10.598]
[1641688315749,33.4271273,141.59,141.52,0.51]
[1641688315947,8.5,141.59,141.52,0.51]
[1641688316148,3.69844795,141.61,141.52,0.51]
[1641688316348,0.25,141.6,141.52,0.51]
[1641688316751,0.25,141.6,141.52,0.25]
[1641688316950,29.16222446,141.6,141.54,10.5925]
[1641688317151,29.16222446,141.6,141.48,3.51]
[1641688317152,29.16222446,141.6,141.55,35.3063]
[1641688317549,29.16222446,141.6,141.56,3.26]
[1641688318149,29.16222446,141.6,141.57,10.5934]
[1641688318350,6.06002899,141.59,141.53,35.3121]
[1641688318549,6.06002899,141.59,141.48,0.25]
[1641688318550,6.06002899,141.59,141.45,82.6802]
[1641688318751,0.25,141.58,141.46,47.0276]
[1641688319049,0.25,141.58,141.46,50.2876]
[1641688319253,1.90345313,141.58,141.46,47.0276]
[1641688319453,8.76,141.57,141.46,47.0276]
[1641688319851,1.90345313,141.56,141.46,47.0276]
[1641688320251,0.26,141.55,141.46,47.0276]
[1641688320451,0.26,141.55,141.47,0.51]
[1641688320652,0.26,141.55,141.47,3.51]
[1641688320852,11.1085,141.56,141.49,10.598]
[1641688321352,11.1085,141.56,141.5,0.51]
[1641688321954,10.8485,141.56,141.5,0.51]
[1641688322355,10.8485,141.56,141.5,0.26]
[1641688322557,10.8485,141.56,141.48,0.26]
[1641688323256,10.8485,141.56,141.46,47.0276]
[1641688323458,26.18841774,141.54,141.44,10.6016]
[1641688323659,10.6026,141.51,141.41,34.93140371]
[1641688324060,10.6026,141.51,141.42,3.0]
[1641688324760,10.6026,141.51,141.42,13.6032]
[1641688324960,10.6026,141.51,141.43,0.51]
[1641688325589,10.6026,141.51,141.43,0.25]
[1641688325790,10.6026,141.51,141.43,10.8527]
[1641688325989,0.25,141.5,141.43,10.8527]
[1641688326190,10.8527,141.5,141.43,10.8527]
[1641688326792,10.8527,141.5,141.44,0.26]
[1641688326990,29.36049859,141.54,141.44,10.862]
[1641688327191,29.36049859,141.54,141.45,0.25]
[1641688327491,10.5994,141.55,141.45,3.25]
[1641688327890,10.5994,141.55,141.46,0.26]
[1641688328091,8.5,141.57,141.46,0.26]
[1641688328492,25.87614917,141.56,141.46,3.26]
[1641688328691,25.87614917,141.56,141.46,0.26]
[1641688328891,10.5995,141.55,141.46,0.26]
[1641688329093,8.5,141.57,141.46,0.26]
[1641688329294,8.5,141.57,141.46,3.26]
[1641688329492,8.5,141.57,141.47,0.25]
[1641688330092,67.00268815,141.61,141.47,0.25]
[1641688330292,33.1704,141.61,141.47,8.75]
[1641688330495,8.5,141.61,141.48,3.26]
[1641688330893,8.5,141.61,141.49,0.25]
[1641688331193,28.85868359,141.59,141.49,0.25]
[1641688331393,28.85868359,141.59,141.5,10.5975]
[1641688331593,3.0,141.58,141.5,10.5975]
[1641688331797,3.0,141.58,141.51,0.26]
[1641688331995,3.0,141.58,141.51,0.51]
[1641688332198,10.848,141.57,141.51,0.51]
[1641688332596,3.0,141.6,141.51,11.1069]
[1641688332795,0.25,141.59,141.51,10.5969]
[1641688332995,0.25,141.59,141.52,0.26]
[1641688333397,0.25,141.59,141.52,0.51]
[1641688333797,10.5966,141.58,141.52,0.51]
[1641688334197,3.0,141.57,141.52,0.51]
[1641688334798,3.0,141.57,141.52,0.26]
[1641688335000,10.5974,141.57,141.52,0.26]
[1641688335199,10.5974,141.57,141.52,0.51]
[1641688336003,10.5974,141.57,141.52,0.25]
[1641688336411,10.5974,141.57,141.51,0.51]
[1641688337202,10.5974,141.57,141.51,0.25]
[1641688337401,10.5974,141.57,141.49,0.25]
[1641688337901,0.26,141.56,141.49,0.25]
[1641688338102,3.25,141.57,141.49,10.8484]
[1641688338302,3.0,141.57,141.49,10.8484]
[1641688338602,6.69844795,141.57,141.49,10.8484]
[1641688338802,3.69844795,141.57,141.49,10.8484]
[1641688339002,3.19844795,141.57,141.49,10.8484]
[1641688339202,13.79594795,141.57,141.5,0.26]
[1641688339403,10.5975,141.57,141.49,0.51]
[1641688339606,10.5975,141.57,141.49,3.25]
[1641688339802,35.3308,141.58,141.49,3.25]
[1641688340003,3.0,141.57,141.49,3.25]
[1641688340403,10.5994,141.55,141.49,3.25]
[1641688341006,0.25,141.54,141.48,10.5993]
[1641688341204,0.25,141.54,141.42,45.9289]
[1641688341405,10.6026,141.5,141.41,36.76730371]
[1641688341603,41.96205622,141.5,141.41,26.43140371]
[1641688341805,0.51,141.49,141.38,125.1638]
[1641688342007,3.51,141.49,141.38,125.1638]
[1641688342206,35.3564,141.48,141.38,125.1638]
[1641688342405,0.51,141.47,141.38,125.1638]
[1641688342605,3.51,141.47,141.38,125.1638]
[1641688342808,3.51,141.47,141.39,18.86028416]
[1641688343307,3.51,141.47,141.38,57.6981]
[1641688343708,3.51,141.47,141.38,47.0917]
[1641688343908,3.51,141.47,141.39,0.25]
[1641688344508,10.6063,141.45,141.39,0.25]
[1641688344712,10.6063,141.45,141.39,0.51]
[1641688344907,0.25,141.44,141.38,10.6063]
[1641688345109,0.51,141.44,141.33,72.2026]
[1641688345509,10.6106,141.4,141.33,82.8128]
[1641688345709,10.6106,141.4,141.3,437.59583218]
[1641688345909,0.51,141.39,141.3,437.59583218]
[1641688346409,0.25,141.39,141.3,448.20823218]
[1641688346812,0.25,141.39,141.3,19.1124]
[1641688347010,0.25,141.39,141.26,8.5]
[1641688347213,0.25,141.39,141.24,8.5]
[1641688347214,8.75,141.39,141.24,8.5]
[1641688347416,0.26,141.38,141.24,8.5]
[1641688347615,35.39,141.35,141.24,8.5]
[1641688347815,35.39,141.35,141.25,22.17413819]
[1641688348017,3.26,141.38,141.26,11.5]
[1641688348215,3.0,141.38,141.26,11.5]
[1641688348417,3.0,141.39,141.27,0.26]
[1641688348619,35.384,141.37,141.27,10.8747]
[1641688349016,3.0,141.36,141.28,0.25]
[1641688349229,10.6149,141.34,141.28,0.25]
[1641688349415,3.0,141.36,141.28,0.25]
[1641688349616,35.3794,141.39,141.28,10.8642]
[1641688350018,3.51,141.38,141.29,0.26]
[1641688350216,10.6133,141.36,141.29,0.26]
[1641688350419,10.6133,141.36,141.26,11.5]
[1641688350420,10.6133,141.36,141.27,0.51]
[1641688350615,10.6133,141.36,141.3,10.6129]
[1641688350816,43.8742,141.41,141.31,0.26]
[1641688351018,8.5,141.44,141.28,8.5]
[1641688351218,10.6109,141.4,141.28,8.5]
[1641688351418,3.0,141.43,141.29,3.51]
[1641688351641,3.0,141.42,141.29,0.51]
[1641688351843,35.3798,141.39,141.29,0.51]
[1641688352045,3.0,141.38,141.29,0.25]
[1641688352243,10.6149,141.34,141.28,10.614]
[1641688352445,0.25,141.33,141.27,99.6707]
[1641688352642,0.25,141.33,141.22,18.96853149]
[1641688352842,0.25,141.33,141.23,10.6178]
[1641688352843,38.6451,141.33,141.23,10.6178]
[1641688353242,0.26,141.32,141.23,10.6178]
[1641688353644,10.619,141.29,141.21,10.19]
[1641688353847,10.619,141.29,141.22,10.6187]